Cogmind - Beta 16 @@@ ROGUE MODE // 2026.01.16 @ 11:16:01 Player: cingulata Result: Destroyed by P-80 Master with Gamma Rifle Performance ------------- Evolutions (7) 3500 Regions Visited (19) 3800 Robots Destroyed (240) 1200 Value Destroyed (9569) 9569 Prototype IDs (80) 1600 Alien Tech Used (4) 800 Bonus (6454) 6454 TOTAL SCORE: 26923 Bonus ------- High Alert Combat Kills 271 Follower Combat Kills 2344 Network Hubs Disabled 200 Registered with UFD 300 Met Optimus in HQ 500 Met Zhirov 300 Built Enhanced Grunts 300 Met R17 at Cetus 500 Used Core Reset Matrix 3000 Met R17 at Research 2000 Friendly Fire -3261 Cogmind --------- Core Integrity 0/1300 Matter 257/300 Energy 99/100 System Corruption 5% Temperature Cool (0) +ITN Movement Core (50) Location -3/Section 7 Parts ------- > --- POWER (2) -------- (None) > --- PROPULSION (7) --- Armored Heavy Treads Combat Antigrav System > --- UTILITY (10) ----- Core Analyzer > --- WEAPON (2) ------- (None) > --- INVENTORY (5) ---- Gamma Bomb Array Vibroblade Peak State ------------ > --- POWER ------------ Particle Reactor Graviton Reactor > --- PROPULSION ------- Armored Medium Treads Heavy Treads Heavy Treads Improved Heavy Siege Treads > --- UTILITY ---------- Advanced Cooling System High-capacity Storage Unit Improved Matter Compressor Long-range Terrain Scanner Experimental Terrain Scan Processor Improved Targeting Computer Advanced Targeting Computer Layered Medium Armor Plating Advanced Force Field A0-MCA's Component Scanner > --- WEAPON ----------- Heavy Linear Accelerator > --- INVENTORY -------- Heavy Siege Treads Thunder Leg Thunder Leg Myomer Leg Advanced Visual Processing Unit Advanced Signal Interpreter Quantum Capacitor Graphene Brace Advanced Point Defense System Hacking Suite Transdimensional Reconstructor Core Reset Matrix Compact HERF Cannon Linear Accelerator Gamma Bomb Array Improved Plasma Cutter [Rating: 148] Favorites ----------- Power Heavy Ion Engine Engine Heavy Ion Engine Power Core Neutrino Core Reactor Particle Reactor Propulsion Light Treads Treads Light Treads Leg Flexi-carbon Leg Wheel Armored Wheel Hover Unit Cooled Gravmag System Flight Unit Improved Flight Unit Utility A0-MCA's Component Scanner Device Graphene Brace Storage Medium Storage Unit Processor A0-MCA's Component Scanner Hackware Improved Hacking Suite Protection Medium Armor Plating Weapon Datajack Energy Gun Gatling Laser Energy Cannon Compact HERF Cannon Ballistic Gun Heavy Assault Rifle Ballistic Cannon Heavy Linear Accelerator Launcher Gamma Bomb Array Special Weapon Improved Plasma Cutter Impact Weapon Shock Maul Slashing Weapon Segregator Piercing Weapon Lance Special Melee Weapon Datajack Build | -11 -10 -9 -9 -9 -9 -6 -6 -6 -6 -6 -5 -4 -4 -4 -4 -3 -3 -3 -3 ------- Run | Yrd Mat Mat Sto Rec Scr Fac Ext Cet Arc Hub Fac Fac Upp Upp Zhi Pro Res Qua Sec Slots Evolved 14 | . . 2 . . . 6 . . . . 2 2 . . . . 2 . . Power 1 | . . . . . . 1 . . . . . . . . . . . . . Propulsion 5 | . . 1 . . . 2 . . . . 1 1 . . . . . . . Utility 8 | . . 1 . . . 3 . . . . 1 1 . . . . 2 . . Weapon . | . . . . . . . . . . . . . . . . . . . . Parts Attached 271 | 3 23 18 25 . 16 10 25 8 4 6 14 13 8 9 8 4 50 9 18 Power 35 | . 3 1 2 . 3 2 6 1 1 1 2 2 . 1 1 1 7 . 1 Engine 19 | . 3 1 2 . 3 1 5 . 1 . . 1 . . . 1 1 . . Core 6 | . . . . . . 1 1 . . . . 1 . 1 1 . 1 . . Reactor 10 | . . . . . . . . 1 . 1 2 . . . . . 5 . 1 Propulsion 97 | 2 8 5 10 . 7 1 9 2 1 1 4 3 2 6 4 1 20 4 7 Treads 40 | 1 3 4 8 . 1 . 8 2 1 1 . . 1 3 . . 5 1 1 Leg 10 | . . . . . . . . . . . . . . 3 . . 4 3 . Wheel 16 | 1 5 1 2 . 2 . . . . . . . . . . . 5 . . Hover 17 | . . . . . . . . . . . 2 1 1 . 4 1 3 . 5 Flight 14 | . . . . . 4 1 1 . . . 2 2 . . . . 3 . 1 Utility 80 | . 5 3 4 . 4 6 6 3 2 4 5 7 4 1 2 1 15 3 5 Device 34 | . 1 1 1 . 1 3 2 1 1 1 3 5 2 1 1 . 6 1 3 Storage 9 | . 2 . . . 1 1 . . . . . . 1 . . 1 1 2 . Processor 15 | . 1 1 1 . 1 2 1 . . 1 1 1 1 . . . 3 . 1 Hackware 6 | . . . . . . . . . 1 1 . 1 . . . . 2 . 1 Protection 16 | . 1 1 2 . 1 . 3 2 . 1 1 . . . 1 . 3 . . Artifact . | . . . . . . . . . . . . . . . . . . . . Weapon 59 | 1 7 9 9 . 2 1 4 2 . . 3 1 2 1 1 1 8 2 5 Energy Gun 6 | . 1 1 . . 1 . 2 . . . 1 . . . . . . . . Energy Cannon 7 | . 1 . . . . 1 . . . . 1 . . . . . 2 . 2 Ballistic Gun 22 | 1 3 6 5 . . . . 2 . . . . . 1 . 1 2 . 1 Ballistic Cannon 8 | . . . . . 1 . 1 . . . . 1 1 . . . 3 1 . Launcher 3 | . . 2 . . . . . . . . . . . . . . . 1 . Special Weapon 4 | . 1 . 1 . . . 1 . . . . . . . 1 . . . . Impact Weapon 3 | . 1 . 2 . . . . . . . . . . . . . . . . Slashing Weapon 3 | . . . . . . . . . . . 1 . . . . . . . 2 Piercing Weapon 1 | . . . . . . . . . . . . . . . . . 1 . . Special Melee Weapon 2 | . . . 1 . . . . . . . . . 1 . . . . . . Unidentified Prototypes 8 | . . 1 2 . . . . . . . . . . . 1 . . . 4 Corrupted Parts 3 | . . . . . . . . . 1 . . . . . . . 1 . 1 System Corruption 19 | . . . . . . . . . 10 . . . . . . . 8 . 1 Parts Lost 90 | . 5 2 2 . . . 9 . . . 10 12 . 2 . 11 11 6 20 Power 12 | . 2 . . . . . 2 . . . 2 2 . . . 2 . . 2 Propulsion 37 | . 1 . . . . . 2 . . . 2 7 . 2 . 5 7 3 8 Utility 23 | . . . 2 . . . 4 . . . 2 3 . . . 1 2 3 6 Weapon 18 | . 2 2 . . . . 1 . . . 4 . . . . 3 2 . 4 Highest Loss Streak 11 | . 2 2 1 . . . 4 . . . 6 11 . 1 . 8 4 2 10 To Critical Strikes 2 | . . . . . . . . . . . 2 . . . . . . . . Average Backups 11 | 6 8 13 14 15 17 9 9 9 8 9 8 4 5 8 6 9 9 12 6 Power . | 1 1 1 1 1 . . . 1 1 . 1 . . . . 1 . . . Propulsion 2 | 4 2 3 5 6 5 . . . . 1 . . . . . . . 1 . Utility 4 | . 2 4 3 3 4 4 4 3 3 4 4 2 3 4 3 4 3 6 3 Weapon 2 | 1 1 4 3 3 4 1 2 2 1 2 1 . 1 1 . 2 1 2 2 Tool/Special . | . . . . . . . . . . . . . . . . . . . . Unused Backups 48 | 6 5 2 4 . 5 1 1 5 . 1 4 1 . . 3 . 6 . 4 Power 9 | . 1 . 3 . . . 1 2 . 1 1 . . . . . . . . Propulsion 12 | 4 . 1 . . 1 . . 1 . . 1 . . . . . 4 . . Utility 18 | . 4 1 . . 1 . . 1 . . 1 1 . . 3 . 2 . 4 Weapon 7 | 2 . . 1 . 1 1 . 1 . . 1 . . . . . . . . Tool/Special 2 | . . . . . 2 . . . . . . . . . . . . . . Average Slot Usage (%) 85 | . 97 99 100 100 99 92 91 88 49 86 78 72 35 81 87 90 79 77 48 Engine 5 | . 14 11 11 11 10 1 5 10 1 1 . 4 . . . 1 1 . 1 Reactor 2 | . . . . . . . . 2 3 11 9 . . . . . 4 8 3 Treads 15 | . 14 21 22 22 22 . 10 22 11 20 15 . 3 13 15 11 10 18 1 Wheel 5 | . 13 11 11 11 10 . . . . . . . . . . . 2 . . Hover 1 | . . . . . . . . . . . . 9 2 . 12 21 4 . 1 Flight 2 | . . . . . . 32 22 . . . . 17 . . . . . . . Device 6 | . 1 6 7 . . 13 7 6 1 6 5 14 5 11 15 12 12 14 11 Storage 7 | . 14 11 11 11 11 6 6 6 6 6 4 . 1 5 5 6 4 5 2 Processor 13 | . 8 10 8 11 11 11 15 20 19 13 14 17 17 18 15 15 16 19 10 Protection 5 | . 2 4 5 10 10 5 7 6 1 3 7 . . 4 4 5 4 3 . Ballistic Gun 6 | . 17 15 19 19 . . . 9 3 13 8 . . 4 . 7 1 . . Impact Weapon 2 | . . . 1 1 10 5 4 . . . . . . . . . . . . Special Melee Weapon 2 | . . . . 1 10 5 2 . . . . . 3 1 4 2 . . . Peak Build Rating 148 | 6 8 17 22 22 30 53 56 105 105 109 132 96 57 98 108 107 141 148 137 Average Rating 60 | 5 7 14 18 19 24 49 51 94 64 105 123 84 40 87 91 100 118 136 73 On Entrance 59 | 6 6 8 17 18 22 19 51 52 105 105 109 61 29 50 97 102 66 134 137 Avg Prop Armor Cover (%) 15 | 12 10 18 15 13 15 1 2 6 . . 10 10 25 13 21 16 9 5 29 Naked Turns 18 | . . . . . . . . . . . . . . . . . . . 18 Heaviest Build 137 | 11 30 41 43 41 63 26 49 59 59 67 79 24 12 51 38 49 110 137 108 Greatest Support 242 | 20 40 40 40 12 73 26 100 180 180 180 240 32 12 81 60 65 242 242 71 Greatest Overweight (x) 15 | 1 2 3 4 3 15 1 . . 3 . . 1 3 1 2 1 1 1 2 Average Overweight (x) . | . . 1 2 2 3 . . . . . . . . . . . . . . Largest Inventory Capacity 20 | 8 15 15 15 15 20 20 10 10 10 10 10 5 10 10 10 10 10 20 20 Average Capacity 13 | 8 10 15 15 15 19 10 10 10 10 10 9 5 6 10 10 10 10 16 15 Most Carried 20 | 8 10 15 15 15 20 16 10 10 10 10 10 5 10 10 10 10 10 19 13 Average Carried 11 | 6 8 13 14 15 17 9 9 9 8 9 8 4 5 8 6 9 9 13 7 Final Capacity 20 | 8 15 15 15 15 20 10 10 10 10 10 5 5 10 10 10 10 10 20 5 Final Carried 17 | 6 8 15 15 15 17 10 10 10 10 10 3 5 10 10 10 10 10 12 2 Class Distribution -------------------- 35% | Scavenger-Mutant 29% | Commander-Mutant 22% | Mutant 3% | Sprinter 3% | Alien-Mutant Dominant Class ---------------- Mutant | -10/Materials Mutant | -9/Materials Mutant | -9/Storage Commander-Mutant | -9/Recycling Commander-Mutant | -9/Scraptown Commander-Sprinter | -6/Factory Scavenger-Mutant | -6/Extension Scavenger-Mutant | -6/Cetus Commander-Mutant | -6/Archives Scavenger-Mutant | -6/Hub_04(d) Scavenger-Mutant | -5/Factory Mutant | -4/Factory Derelict-Mutant | -4/Upper Caves Scavenger-Mutant | -4/Upper Caves Scavenger-Mutant | -4/Zhirov Derelict-Mutant | -3/Proximity Caves Scavenger-Mutant | -3/Research Scavenger-Mutant | -3/Quarantine Alien-Mutant | -3/Section 7 Resources | -11 -10 -9 -9 -9 -9 -6 -6 -6 -6 -6 -5 -4 -4 -4 -4 -3 -3 -3 -3 ----------- Run | Yrd Mat Mat Sto Rec Scr Fac Ext Cet Arc Hub Fac Fac Upp Upp Zhi Pro Res Qua Sec Matter Collected 10927 | 302 688 946 1167 141 250 210 342 221 335 36 764 136 231 1028 339 131 1567 1316 777 Remotely 187 | . . . . . . . . . . . 187 . . . . . . . . Salvage Created 10491 | 188 1260 780 1169 362 . 146 432 161 232 . 1677 . . 724 252 75 720 1257 1056 Parts 500 | 13 84 46 66 19 . 3 11 8 16 . 95 1 . 18 3 10 24 49 34 Haulers Intercepted 6 | . 2 1 3 . . . . . . . . . . . . . . . . Recyclers Shooed 11 | . 1 2 2 3 . . . . . . 2 1 . . . . . . . Parts Field Recycled . | . . . . . . . . . . . . . . . . . . . . Retrieved Matter . | . . . . . . . . . . . . . . . . . . . . Parts Self-Destructed 17 | . . . . . . . . . . . . . . 7 2 8 . . . Prevented . | . . . . . . . . . . . . . . . . . . . . Parts Restored . | . . . . . . . . . . . . . . . . . . . . Kills | -11 -10 -9 -9 -9 -9 -6 -6 -6 -6 -6 -5 -4 -4 -4 -4 -3 -3 -3 -3 ------- Run | Yrd Mat Mat Sto Rec Scr Fac Ext Cet Arc Hub Fac Fac Upp Upp Zhi Pro Res Qua Sec Combat Hostiles Destroyed 174 | . 30 20 19 3 . 2 8 2 1 . 31 . . 6 . 2 10 27 13 Melee 2 | . . . . . . . 1 . . . . . . . . . 1 . . Guns 74 | . 16 12 15 3 . . 1 1 1 . 22 . . . . 2 1 . . Cannons 61 | . 13 . . . . . 1 . . . 4 . . 6 . . 7 21 9 AOE 20 | . . 8 4 . . 2 . . . . 5 . . . . . . . 1 Classes Destroyed 19 | 2 6 2 1 1 . . 1 . . . 3 . . 2 . . . 1 . Worker 12 | . 2 1 3 . . . . . . . 3 . . . . . 2 . 1 Builder 4 | . . 1 . . . . . . . . 2 . . . . . . . 1 Tunneler 6 | 5 . . . . . . . . . . 1 . . . . . . . . Hauler 6 | . 2 1 3 . . . . . . . . . . . . . . . . Recycler 15 | 1 1 2 3 3 . 1 . . . . 2 . . . . . 1 . 1 Operator 12 | . 1 1 . . . 1 . . 8 . . 1 . . . . . . . Drone 3 | . . . . . . . . . . . 2 . . . . 1 . . . Watcher 8 | . 2 2 2 . . . . . . . . . . . . . . 1 1 Swarmer 38 | . 6 6 5 . . 2 . . . . 14 . . 1 . . 2 . 2 Grunt 69 | . 24 9 5 . . . 2 . . . 8 . . 1 . . 3 15 2 Brawler 1 | . . . . . . . . . . . . . . . . . . 1 . Duelist 2 | . . . . . . . . . . . 2 . . . . . . . . Protector 1 | . . . 1 . . . . . . . . . . . . . . . . Sentry 30 | . . 5 8 2 . . 5 . 1 . 2 . . 1 . . 3 . 3 Demolisher 1 | . . . . . . . 1 . . . . . . . . . . . . Hunter 7 | . . . . . . . . . . . 1 . . 1 . . . 2 3 Programmer 22 | . . . . 1 . . . . . . 4 . . 2 . 1 2 9 3 Cetus Guard 2 | . . . . . . . . 2 . . . . . . . . . . . Packrat 2 | . . . . . . . . . . . . . . 2 . . . . . Samaritan 2 | . . . . . . . . . . . . . . 2 . . . . . Thug 1 | . . . . . . . . . . . . . . 1 . . . . . Butcher 1 | . . . . . . . . . . . . . . 1 . . . . . Mutant 1 | . . . . . . . . . . . . . . 1 . . . . . Best Kill Streak 12 | 4 4 12 5 3 . 2 2 2 4 . 8 1 . 3 . 1 3 5 6 Combat Bots Only 7 | . 4 7 5 1 . 2 2 2 1 . 5 . . 3 . 1 3 5 5 Max Kills in Single Turn 5 | 1 1 4 4 1 . 2 1 1 1 . 5 1 . 1 . 1 1 1 2 Gunslinging . | . . . . . . . . . . . . . . . . . . . . Exploded 5 | . . 3 4 . . 2 . . . . 5 . . . . . . . 1 Melee 1 | . . . . . . . 1 . . . . . . . . . 1 . . Uniques/NPCs Destroyed 1 | . . . . . . . . 1 . . . . . . . . . . . A7 (-6/Cetus) Combat | -11 -10 -9 -9 -9 -9 -6 -6 -6 -6 -6 -5 -4 -4 -4 -4 -3 -3 -3 -3 -------- Run | Yrd Mat Mat Sto Rec Scr Fac Ext Cet Arc Hub Fac Fac Upp Upp Zhi Pro Res Qua Sec Hostile Shots Fired 1996 | . 130 92 89 2 . 44 212 1 5 12 353 91 2 57 . 118 162 315 311 Missed 677 | . 34 18 31 . . 28 96 1 2 4 81 44 1 19 . 52 48 93 125 Hits 1319 | . 96 74 58 2 . 16 116 . 3 8 272 47 1 38 . 66 114 222 186 Melee 22 | . . . . . . . . . . . 3 18 . . . . . 1 . Projectile 1297 | . 96 74 58 2 . 16 116 . 3 8 269 29 1 38 . 66 114 221 186 AOE 7 | . . . . . . 1 1 . . . 1 3 . . . . 1 . . Critical Strikes 61 | . 1 2 . . . . . 1 . 1 9 9 . 3 . 2 6 18 9 Actively Blocked 23 | . . . . . . . . . . . . 9 . 3 . 1 3 2 5 Part Disruptions 5 | . . . . . . . . . . . . . . . . . 1 2 2 Actively Blocked 1 | . . . . . . . . . . . . . . . . . 1 . . Damage Taken 21595 | . 1085 966 723 26 . 160 1178 117 103 303 4191 1092 20 672 . 1357 2662 3336 3604 Core 2943 | . 214 155 73 . . 28 306 12 28 18 370 349 20 33 . 100 394 258 585 Absorbed by Shields 2476 | . . . 25 . . . 46 35 . . 649 . . . . . 38 1623 60 Reduced by Siege Mode 273 | . . . . . . . . . 7 . 127 . . . . . . 116 23 Redirected to Shielding 193 | . 11 18 . . . . . . . . . . . . . 37 127 . . Regen/Repaired (Parts) 104 | . . . 104 . . . . . . . . . . . . . . . . Core Remaining (%) 54 | 100 14 . . . 43 . . . . 53 63 . . . . 56 . . . Volleys Fired 783 | 18 119 79 74 18 . 4 5 12 14 . 82 17 2 48 24 10 81 104 72 Largest 2 | 2 2 2 2 2 . 1 2 2 2 . 2 1 1 2 1 2 2 1 1 Hottest 160 | 40 100 79 46 46 . 90 160 160 70 . 125 55 55 90 35 65 111 94 113 Shots Fired 1215 | 36 237 150 140 36 . 4 9 21 28 . 156 17 2 66 23 17 105 96 72 Gun 858 | 36 186 142 132 36 . . 7 16 28 . 131 . . 43 23 16 62 . . Cannon 329 | . 50 . . . . 3 1 3 . . 25 17 2 23 . 1 43 93 68 Launcher 25 | . . 8 8 . . 1 1 . . . . . . . . . . 3 4 Special 3 | . 1 . . . . . . 2 . . . . . . . . . . . Kinetic 996 | 36 172 114 132 36 . . 1 12 28 . 131 17 2 66 23 17 99 79 31 Thermal 157 | . 65 28 . . . 3 7 7 . . 25 . . . . . . . 22 Explosive 18 | . . 8 8 . . 1 1 . . . . . . . . . . . . Electromagnetic 42 | . . . . . . . . . . . . . . . . . 6 17 19 Robot Hit Streak 24 | 7 16 24 13 21 . . 7 7 5 . 16 4 . 24 20 3 20 18 16 Robot Miss Streak 5 | 4 4 3 2 2 . . 2 2 2 . 4 3 . 2 1 3 3 5 3 Penetration Max 1 | . . . . . . . . 1 1 . 1 . . . . . 1 . . Secondary Targets 9 | . 3 . 1 . . . . . . . 5 . . . . . . . . Max Gunslinging Chain 1 | . 1 . 1 . . . . . . . 1 . . . . . . . . Capacitor 37 | . . . . . . . . . . . . . . . . . . . 37 Shots Hit Robots 927 | 25 159 103 95 40 13 4 57 23 19 . 98 6 . 55 24 6 73 72 55 Core Hits 404 | 9 62 47 52 10 . 3 12 10 17 . 61 2 . 27 5 4 29 26 28 Critical Kills 20 | 1 1 . . . . . 2 . 2 . 13 . . . . . 1 . . Critical Parts Destroyed 32 | . 1 1 . . . 1 8 3 3 . 13 . . 1 . . 1 . . Critical Strikes 79 | 1 3 5 . . . 1 10 3 5 . 26 1 . 4 . . 7 11 2 Burn 5 | . 1 4 . . . . . . . . . . . . . . . . . Meltdown 1 | . 1 . . . . . . . . . . . . . . . . . . Destroy 40 | 1 1 1 . . . . 1 2 5 . 26 . . 1 . . 2 . . Blast 20 | . . . . . . . . . . . . 1 . 3 . . 4 10 2 Corrupt 2 | . . . . . . . . . . . . . . . . . 1 1 . Smash 11 | . . . . . . 1 9 1 . . . . . . . . . . . Melee Attacks 150 | . 2 1 14 12 13 28 59 8 . . . 3 . . 3 . 4 . 3 Thermal 3 | . . . . . . . . . . . . 3 . . . . . . . Impact 77 | . 2 1 14 . . 27 25 8 . . . . . . . . . . . Slashing 3 | . . . . . . . . . . . . . . . . . . . 3 Piercing 4 | . . . . . . . . . . . . . . . . . 4 . . Sneak Attacks 76 | . 1 . . 11 12 3 36 8 . . . 2 . . 3 . . . . Combat Hostiles 1 | . . . . . . . 1 . . . . . . . . . . . . Follow-up Attacks . | . . . . . . . . . . . . . . . . . . . . Damage Inflicted 27853 | 274 1911 2515 2078 423 . 445 1008 1090 652 . 3983 198 . 1599 620 236 2350 5767 2704 Guns 11476 | 274 1106 1407 1421 423 . . 160 369 541 . 2896 . . 914 620 170 1175 . . Cannons 10961 | . 757 . . . . . 10 40 . . 419 198 . 685 . . 1140 5500 2212 Explosions 3432 | . . 1108 657 . . 130 143 . . . 643 . . . . . . 267 484 Melee 1774 | . 48 . . . . 315 695 681 . . . . . . . . 35 . . Ramming 210 | . . . . . . . . . 111 . 25 . . . . 66 . . 8 Kinetic 18778 | 274 1044 1096 1421 423 . . 10 255 541 . 2896 198 . 1599 620 170 2162 5094 975 Thermal 2643 | . 819 311 . . . . 160 154 . . 419 . . . . . . . 780 Explosive 2681 | . . 1108 657 . . 130 143 . . . 643 . . . . . . . . Electromagnetic 1767 | . . . . . . . . . . . . . . . . . 153 673 941 Impact 1739 | . 48 . . . . 315 695 681 . . . . . . . . . . . Slashing . | . . . . . . . . . . . . . . . . . . . . Piercing 35 | . . . . . . . . . . . . . . . . . 35 . . Highest Corruption 35 | . . . . . . . 1 1 11 4 3 3 4 6 6 9 17 35 35 Average Corruption 9 | . . . . . . . 1 1 2 3 1 2 3 4 6 7 15 24 2 Corruption Purged 12 | . . . . . . . . . 7 5 . . . . . . . . . Corruption Blocked . | . . . . . . . . . . . . . . . . . . . . Effects 215 | . . . . . . . 1 7 12 2 9 . 6 15 13 5 66 73 6 Message Errors 43 | . . . . . . . . 1 3 . . . . . 6 . 17 13 3 Matter Fused 57 | . . . . . . . . 3 7 . 4 . 4 2 3 2 12 20 . Heat Flow Errors 16 | . . . . . . . . . 1 . . . . 2 . 1 6 5 1 Energy Discharges 28 | . . . . . . . 1 1 . 1 . . 2 2 . 1 9 9 2 Parts Rejected 4 | . . . . . . . . . . . . . . . . . 1 3 . Parts Fused 3 | . . . . . . . . . . . 1 . . . . . 1 1 . Data Loss (minor) 26 | . . . . . . . . 1 1 1 2 . . 3 3 . 8 7 . Data Loss (major) 14 | . . . . . . . . . . . 2 . . 4 . 1 6 1 . Misfires 6 | . . . . . . . . 1 . . . . . 1 . . 2 2 . Alerts 2 | . . . . . . . . . . . . . . 1 . . 1 . . Misdirections 3 | . . . . . . . . . . . . . . . . . 1 2 . Weapon Failures 13 | . . . . . . . . . . . . . . . 1 . 2 10 . Overload Shots . | . . . . . . . . . . . . . . . . . . . . Overflow Damage 2314 | . 29 17 18 . . 252 422 208 . . 37 7 . 55 . . 45 1093 131 Projectiles 1329 | . 15 . . . . . . . . . 16 7 . 55 . . 45 1085 106 Explosions 102 | . . 17 18 . . 13 . . . . 21 . . . . . . 8 25 Melee 883 | . 14 . . . . 239 422 208 . . . . . . . . . . . Knockbacks 65 | . . . . . . 2 1 7 . . . 2 . 3 . 2 8 33 7 Impact 10 | . . . . . . 2 1 6 . . . . . . . 1 . . . Kinetic 49 | . . . . . . . . . . . . 2 . 3 . . 8 30 6 Secondary 6 | . . . . . . . . 1 . . . . . . . 1 . 3 1 Self-Inflicted Damage 279 | . . . . . . . . . . . 58 . . . . 33 . 111 77 Shots 7 | . . . . . . . . . . . 1 . . . . . . 1 5 Rammed 39 | . . . . . . . . . 31 . 4 . . . . 2 . . 2 Targets Rammed 42 | . . . . . . . . . 34 . 4 . . . . 2 . . 2 Kicked . | . . . . . . . . . . . . . . . . . . . . Crushed 3 | . . . . . . . . . 3 . . . . . . . . . . Highest Temperature 281 | . 222 155 12 2 . 104 281 78 116 2 259 10 . 203 . 188 198 219 240 Average Temperature 61 | . 60 44 3 2 . 12 90 27 67 2 79 3 . 91 . 111 76 97 134 Received Heat Transfer 3773 | . 561 393 221 9 . 33 379 . . 48 735 75 . 39 . 111 406 480 283 Thermoelectric Energy+ 195 | . . . . . . . . . . . . . . . . . . . 195 Effects 2 | . . . . . . . . . . . 2 . . . . . . . . Energy Bleed 2 | . . . . . . . . . . . 2 . . . . . . . . Siege Activations 12 | . . . . . . . . . 1 . 3 . . . . . . 7 1 Total Turns 150 | . . . . . . . . . 4 . 55 . . . . . . 77 14 Longest Duration 29 | . . . . . . . . . 4 . 29 . . . . . . 20 14 Martial Activations . | . . . . . . . . . . . . . . . . . . . . Shielding Activations . | . . . . . . . . . . . . . . . . . . . . Robots Disrupted . | . . . . . . . . . . . . . . . . . . . . Combat Hostiles . | . . . . . . . . . . . . . . . . . . . . Robots Corrupted 17 | . . . . . . 1 5 1 . . . . . . . . 1 6 3 Combat Hostiles 14 | . . . . . . . 5 . . . . . . . . . 1 6 2 Parts Fried 26 | . . . . . . 4 4 1 . . . . . . . . 1 5 11 Impact Corruptions 21 | . 1 . . . . 6 9 5 . . . . . . . . . . . Robots Melted 3 | . 1 . . . . . . 1 . . . . . . . . . . 1 Combat Hostiles 3 | . 1 . . . . . . 1 . . . . . . . . . . 1 Parts Melted 12 | . 5 3 . . . . . 2 . . . . . . . . . . 2 Heat Transferred 4708 | . 1813 1110 . . . . 362 350 . . 444 . . . . . . . 629 Parts Sabotaged 3 | . . . . . . . . . . . 3 . . . . . . . . Parts Stolen . | . . . . . . . . . . . . . . . . . . . . Parts Stripped . | . . . . . . . . . . . . . . . . . . . . Power Chain Reactions . | . . . . . . . . . . . . . . . . . . . . Alert | -11 -10 -9 -9 -9 -9 -6 -6 -6 -6 -6 -5 -4 -4 -4 -4 -3 -3 -3 -3 ------- Run | Yrd Mat Mat Sto Rec Scr Fac Ext Cet Arc Hub Fac Fac Upp Upp Zhi Pro Res Qua Sec Maximum Alert Level 2 | . 1 1 2 1 . 1 2 2 1 . 2 1 . . . . . 2 2 Low Security (%) 49 | 100 49 54 9 40 . 85 26 . 73 100 56 43 . . . . 100 44 1 Level 1 42 | . 50 45 83 59 . 14 49 78 26 . 22 56 . . . . . 32 88 Level 2 7 | . . . 6 . . . 23 21 . . 20 . . . . . . 23 10 Level 3 . | . . . . . . . . . . . . . . . . . . . . Level 4 . | . . . . . . . . . . . . . . . . . . . . Level 5 . | . . . . . . . . . . . . . . . . . . . . High Security . | . . . . . . . . . . . . . . . . . . . . Max Security . | . . . . . . . . . . . . . . . . . . . . Peak Influence 648 | 10 354 369 495 267 . 258 648 451 355 161 574 332 . . . . 107 511 513 Initial 345 | . 3 143 152 129 . . 72 345 129 . 58 238 . . . . . 23 259 Average 199 | 2 202 213 303 207 . 114 304 368 119 37 219 219 . . . . 18 218 305 Influence Increases 9443 | 30 911 662 1173 344 . 498 1344 297 317 256 1082 282 30 130 10 25 425 873 754 Destroy 0b10 Robot/C 4720 | . 600 400 620 120 . 180 740 160 80 60 620 . . 120 . 20 200 540 260 Destroy 0b10 Robot/NC 390 | 30 40 40 70 20 . 25 . 10 45 10 40 5 . . 10 5 15 5 20 Destroy Leader 864 | . 128 106 200 . . 34 70 . . 22 100 . . 10 . . 50 82 62 Allied During Kill 753 | . . . 83 49 . 65 244 110 125 77 . . . . . . . . . Successful Hack 301 | . 21 34 3 34 . 55 38 . . . 24 34 . . . . 53 . 5 Select Force Hacks 230 | . 60 . . 120 . . . . . 50 . . . . . . . . . Disable Machine 540 | . . . 105 . . 15 45 . 60 15 105 15 . . . . 45 90 45 Destroy Structure 580 | . 2 52 47 1 . 34 42 17 7 22 148 18 . . . . 32 66 92 Partial Spotted 150 | . . . . . . 30 75 . . . . 30 . . . . 15 . . Lose Combat Pursuer 915 | . 60 30 45 . . 60 90 . . . 45 180 30 . . . 15 90 270 Influence Decreases 8948 | 25 577 638 1203 530 147 349 875 591 641 137 714 679 120 120 20 25 383 453 721 Entered New Map 1881 | . 2 196 211 204 147 . 77 273 195 . 61 249 34 . 10 . . 19 203 Time Decay 4996 | 25 525 422 542 326 . 202 368 278 426 57 454 160 86 120 10 5 298 374 318 Lost Part 765 | . 50 20 20 . . . 90 . . . 100 120 . . . 20 85 60 200 Lost Ally 856 | . . . 130 . . 147 340 40 20 80 99 . . . . . . . . Purge Threat 450 | . . . 300 . . . . . . . . 150 . . . . . . . Squads Dispatched 54 | . 10 2 5 . . 2 4 . . 2 6 4 . . . 1 7 6 5 Investigation 14 | . 6 . 1 . . 1 1 . . 1 . . . . . . 3 . 1 Extermination 9 | . . . . . . . . . . . 2 1 . . . . . 3 3 Reinforcement 24 | . 4 2 2 . . 1 2 . . 1 2 3 . . . . 4 2 1 Assault 7 | . . . 2 . . . 1 . . . 2 . . . . 1 . 1 . Garrison . | . . . . . . . . . . . . . . . . . . . . Intercept . | . . . . . . . . . . . . . . . . . . . . Searches Triggered . | . . . . . . . . . . . . . . . . . . . . Construction Impeded 5 | . . 1 1 . . . 2 . . . 1 . . . . . . . . Haulers Reinforced 3 | . . . . . . . . . . . 1 . . . . . 2 . . Active Scanning Responses . | . . . . . . . . . . . . . . . . . . . . Cargo Convoy Interrupts 1 | . . . . . . . . . . . 1 . . . . . . . . Stealth | -11 -10 -9 -9 -9 -9 -6 -6 -6 -6 -6 -5 -4 -4 -4 -4 -3 -3 -3 -3 --------- Run | Yrd Mat Mat Sto Rec Scr Fac Ext Cet Arc Hub Fac Fac Upp Upp Zhi Pro Res Qua Sec Distress Signals 19 | . 1 2 1 . . 1 . 2 . . . 2 . . . . 7 . 3 Communications Jammed . | . . . . . . . . . . . . . . . . . . . . Distress Signals . | . . . . . . . . . . . . . . . . . . . . Times Spotted 464 | . 45 26 40 4 . 20 40 10 37 8 45 37 2 7 . 20 39 41 43 Peak Tracking Total 18 | . 4 7 8 1 . 6 7 5 2 7 6 18 2 3 . 16 6 7 11 Tactical Retreats 41 | . 4 1 3 . . 4 5 . . . 2 6 1 . . 2 1 5 7 ECM-based Alert Blocks 21 | . . . . . . . . . . . . 16 . . . 5 . . . Traps | -11 -10 -9 -9 -9 -9 -6 -6 -6 -6 -6 -5 -4 -4 -4 -4 -3 -3 -3 -3 ------- Run | Yrd Mat Mat Sto Rec Scr Fac Ext Cet Arc Hub Fac Fac Upp Upp Zhi Pro Res Qua Sec Traps Triggered 17 | . 6 . 3 . . . 1 . . . . 2 . . . . 4 . 1 Indirectly . | . . . . . . . . . . . . . . . . . . . . Trap Hack Attempts . | . . . . . . . . . . . . . . . . . . . . Triggered . | . . . . . . . . . . . . . . . . . . . . Disarmed . | . . . . . . . . . . . . . . . . . . . . Reprogrammed . | . . . . . . . . . . . . . . . . . . . . Reused . | . . . . . . . . . . . . . . . . . . . . Traps Extracted . | . . . . . . . . . . . . . . . . . . . . Installed . | . . . . . . . . . . . . . . . . . . . . Triggered . | . . . . . . . . . . . . . . . . . . . . Machines | -11 -10 -9 -9 -9 -9 -6 -6 -6 -6 -6 -5 -4 -4 -4 -4 -3 -3 -3 -3 ---------- Run | Yrd Mat Mat Sto Rec Scr Fac Ext Cet Arc Hub Fac Fac Upp Upp Zhi Pro Res Qua Sec Machines Disabled 37 | . . . 7 . . 1 3 . 4 1 7 1 . . 1 . 3 6 3 Max in Single Turn 2 | . . . 1 . . 1 1 . . . 2 1 . . 1 . 1 1 2 Garrison Access 4 | . . . 1 . . 1 . . . . 1 . . . . . 1 . . Network Hub 1 | . . . . . . . . . . 1 . . . . . . . . . Machines Repaired . | . . . . . . . . . . . . . . . . . . . . Machines Dismantled 6 | . . . 1 . . . 3 . . . . . . . . . 2 . . Machines Sabotaged 1 | . . . . . . . . . . 1 . . . . . . . . . Overloaded Fab Kills . | . . . . . . . . . . . . . . . . . . . . Hacking | -11 -10 -9 -9 -9 -9 -6 -6 -6 -6 -6 -5 -4 -4 -4 -4 -3 -3 -3 -3 --------- Run | Yrd Mat Mat Sto Rec Scr Fac Ext Cet Arc Hub Fac Fac Upp Upp Zhi Pro Res Qua Sec Machines Accessed 94 | . 6 8 11 11 5 10 7 . . 2 4 5 . . 7 . 7 6 5 Terminals 55 | . 4 7 8 6 . 9 7 . . 2 2 2 . . . . . 5 3 Fabricators 4 | . . . . . . . . . . . 1 1 . . . . 2 . . Repair Stations 6 | . . . 2 . . . . . . . 1 . . . . . 2 . 1 Recycling Units 7 | . 2 . . 4 . . . . . . . 1 . . . . . . . Scanalyzers 4 | . . 1 . . . . . . . . . . . . . . 2 1 . Garrison Access 5 | . . . 1 . . 1 . . . . . 1 . . . . 1 . 1 Total Hacks 332 | . 20 23 27 49 32 22 19 . . 5 17 26 . . 46 . 21 12 13 Successful 188 | . 11 15 9 35 32 6 5 . . 2 7 9 . . 46 . 10 . 1 Failed 142 | . 9 8 18 13 . 16 14 . . 3 10 17 . . . . 10 12 12 Catastrophic 33 | . . 2 5 1 . 5 3 . . . 2 3 . . . . 1 6 5 Database Lockouts 2 | . . . . 1 . . . . . . . . . . . . 1 . . Manual 125 | . 20 15 10 29 . 6 5 1 . 5 10 7 . . . . 3 9 5 Terminals 166 | . 17 18 22 25 . 19 19 . . 5 8 15 . . . . . 11 7 Fabricators 12 | . . . . . . . . . . . 4 3 . . . . 5 . . Repair Stations 18 | . . . 4 . . . . . . . 5 . . . . . 5 . 4 Recycling Units 14 | . 3 . . 5 . . . . . . . 6 . . . . . . . Scanalyzers 16 | . . 5 . . . . . . . . . . . . . . 10 1 . Garrison Access 9 | . . . 1 . . 3 . . . . . 2 . . . . 1 . 2 Terminal Hacks 124 | . 2 3 5 23 32 4 4 . . . 2 3 . . 46 . . . . Record 85 | . . . . 19 32 . . . . . . . . . 34 . . . . Part Schematic 6 | . . . . 1 . . 1 . . . . . . . 4 . . . . Robot Schematic 1 | . . . . 1 . . . . . . . . . . . . . . . Robot Analysis 7 | . 2 1 . . . . . . . . . . . . 4 . . . . Prototype ID Bank 6 | . . . . 2 . . . . . . . . . . 4 . . . . Open Door 3 | . . . 1 . . 1 1 . . . . . . . . . . . . Branch Access Points 3 | . . 1 . . . 1 . . . . . 1 . . . . . . . Alert Level 2 | . . . 1 . . . . . . . 1 . . . . . . . . Unreport Threat 4 | . . . 2 . . . . . . . 1 1 . . . . . . . Locate Traps 4 | . . 1 1 . . 1 1 . . . . . . . . . . . . Recall Extermination 1 | . . . . . . . . . . . . 1 . . . . . . . Zone Layout 2 | . . . . . . 1 1 . . . . . . . . . . . . Fabricator Hacks 2 | . . . . . . . . . . . . 1 . . . . 1 . . Build 2 | . . . . . . . . . . . . 1 . . . . 1 . . Repair Station Hacks 5 | . . . 2 . . . . . . . 1 . . . . . 1 . 1 Scan Component 2 | . . . 1 . . . . . . . 1 . . . . . . . . Repair 1 | . . . 1 . . . . . . . . . . . . . . . . Refit 2 | . . . . . . . . . . . . . . . . . 1 . 1 Recycling Unit Hacks 2 | . . . . . . . . . . . . 2 . . . . . . . Report Inventory 1 | . . . . . . . . . . . . 1 . . . . . . . Retrieve Components 1 | . . . . . . . . . . . . 1 . . . . . . . Scanalyzer 11 | . . 4 . . . . . . . . . . . . . . 7 . . Insert Component 4 | . . 1 . . . . . . . . . . . . . . 3 . . Analyze 2 | . . . . . . . . . . . . . . . . . 2 . . Retrieve Study 5 | . . 3 . . . . . . . . . . . . . . 2 . . Garrison Access Hacks 3 | . . . 1 . . 1 . . . . . . . . . . 1 . . Seal Access 3 | . . . 1 . . 1 . . . . . . . . . . 1 . . Unauthorized Hacks 41 | . 9 8 1 12 . 1 1 . . 2 4 3 . . . . . . . Terminals 31 | . 7 8 1 8 . 1 1 . . 2 2 1 . . . . . . . Track 1 | . . . . . . . 1 . . . . . . . . . . . . Botnet 8 | . 1 1 1 2 . . . . . 1 1 1 . . . . . . . Disrupt 1 | . 1 . . . . . . . . . . . . . . . . . . Operators 5 | . 1 1 . 1 . 1 . . . . 1 . . . . . . . . Skim 15 | . 4 6 . 5 . . . . . . . . . . . . . . . Sabotage 1 | . . . . . . . . . . 1 . . . . . . . . . Fabricators 3 | . . . . . . . . . . . 1 2 . . . . . . . Liberate 1 | . . . . . . . . . . . . 1 . . . . . . . Haulers 2 | . . . . . . . . . . . 1 1 . . . . . . . Repair Stations 1 | . . . . . . . . . . . 1 . . . . . . . . Mechanics 1 | . . . . . . . . . . . 1 . . . . . . . . Recycling Units 6 | . 2 . . 4 . . . . . . . . . . . . . . . Tunnel 6 | . 2 . . 4 . . . . . . . . . . . . . . . Scanalyzers . | . . . . . . . . . . . . . . . . . . . . Garrison Access . | . . . . . . . . . . . . . . . . . . . . Data Cores Recovered 2 | . . 1 . . . 1 . . . . . . . . . . . . . Used 1 | . . 1 . . . . . . . . . . . . . . . . . Hacking Detections 70 | . 4 8 10 6 . 9 6 1 . 2 4 4 . . . . 5 6 5 Full Trace Events 7 | . 1 . 1 1 . 1 1 . . . . . . . . . 1 . 1 Feedback Events . | . . . . . . . . . . . . . . . . . . . . Feedback Blocked . | . . . . . . . . . . . . . . . . . . . . Robot Schematics Acquired 1 | . . . . 1 . . . . . . . . . . . . . . . Robots Built . | . . . . . . . . . . . . . . . . . . . . Authchips . | . . . . . . . . . . . . . . . . . . . . Time . | . . . . . . . . . . . . . . . . . . . . Total Robot Build Rating . | . . . . . . . . . . . . . . . . . . . . Part Schematics Acquired 8 | . . . . 1 . . 1 . . . . . . . 4 . 2 . . Parts Built 2 | . . . . . . . . . . . . . . . . . 2 . . Authchips . | . . . . . . . . . . . . . . . . . . . . Time 127 | . . . . . . . . . . . . 58 . . . . 69 . . Total Part Build Rating 18 | . . . . . . . . . . . . . . . . . 18 . . Part Studies Acquired 5 | . . 3 . . . . . . . . . . . . . . 2 . . Parts Repaired 1 | . . . 1 . . . . . . . . . . . . . . . . Time 32 | . . . 32 . . . . . . . . . . . . . . . . Parts Recycled . | . . . . . . . . . . . . . . . . . . . . Recycled Matter . | . . . . . . . . . . . . . . . . . . . . Retrieved Matter . | . . . . . . . . . . . . . . . . . . . . Retrieved Components 2 | . . . . . . . . . . . . 2 . . . . . . . Parts Scanalyzed 2 | . . . . . . . . . . . . . . . . . 2 . . Part Schematics Acquired 2 | . . . . . . . . . . . . . . . . . 2 . . Parts Damaged 1 | . . . . . . . . . . . . . . . . . 1 . . Bothacking | -11 -10 -9 -9 -9 -9 -6 -6 -6 -6 -6 -5 -4 -4 -4 -4 -3 -3 -3 -3 ------------ Run | Yrd Mat Mat Sto Rec Scr Fac Ext Cet Arc Hub Fac Fac Upp Upp Zhi Pro Res Qua Sec Used RIF Installer . | . . . . . . . . . . . . . . . . . . . . Robots Hacked 20 | . . . . 4 12 1 . . . . . . . . 3 . . . . Non-combat 6 | . . . . 2 3 1 . . . . . . . . . . . . . Combat 14 | . . . . 2 9 . . . . . . . . . 3 . . . . Robot Hacks Applied 20 | . . . . 4 12 1 . . . . . . . . 3 . . . . parse_system 19 | . . . . 4 12 . . . . . . . . . 3 . . . . find_chute 1 | . . . . . . 1 . . . . . . . . . . . . . Relay Couplers Released 6 | . . . . . . . . . . . 2 . . . . . 4 . . Machine Destruction 6 | . . . . . . . . . . . 2 . . . . . 4 . . Fabnet Peak Effective % . | . . . . . . . . . . . . . . . . . . . . Robots Rewired 28 | . . . . 4 . . 24 . . . . . . . . . . . . Allies Hacked . | . . . . . . . . . . . . . . . . . . . . Hacks Repelled . | . . . . . . . . . . . . . . . . . . . . Allies | -11 -10 -9 -9 -9 -9 -6 -6 -6 -6 -6 -5 -4 -4 -4 -4 -3 -3 -3 -3 -------- Run | Yrd Mat Mat Sto Rec Scr Fac Ext Cet Arc Hub Fac Fac Upp Upp Zhi Pro Res Qua Sec Total Allies 50 | . . . 12 4 . . 29 5 . . . . . . . . . . . Largest Group 10 | . . . 10 10 10 10 7 8 6 5 . . . . . . . . . Highest-Rated Group 696 | . . . 88 110 110 110 298 696 503 480 . . . . . . . . . Highest-Rated Ally 159 | . . . 31 21 21 21 159 159 96 96 . . . . . . . . . Total Orders 10 | . . . 2 . 2 3 . . 1 . 2 . . . . . . . . STAY 4 | . . . . . 2 1 . . 1 . . . . . . . . . . FOLLOW 2 | . . . . . . 2 . . . . . . . . . . . . . EXPLORE 3 | . . . 1 . . . . . . . 2 . . . . . . . . RETURN 1 | . . . 1 . . . . . . . . . . . . . . . . Ally Attacks 490 | . . . 68 21 . 88 197 50 34 32 . . . . . . . . . Total Damage 11017 | . . . 803 241 . 1032 4919 1439 1299 1284 . . . . . . . . . Kills 78 | . . . 14 3 . 10 33 8 4 6 . . . . . . . . . Allies Corrupted 8 | . . . . . . 1 3 1 . 3 . . . . . . . . . Allies Melted 1 | . . . . . . 1 . . . . . . . . . . . . . Intel | -11 -10 -9 -9 -9 -9 -6 -6 -6 -6 -6 -5 -4 -4 -4 -4 -3 -3 -3 -3 ------- Run | Yrd Mat Mat Sto Rec Scr Fac Ext Cet Arc Hub Fac Fac Upp Upp Zhi Pro Res Qua Sec Active Infowar (turns) 7195 | . 142 584 901 8 . 520 840 602 1205 . . 185 2 . . 44 608 1296 258 Optics 3076 | . . . . . . 429 840 602 1205 . . . . . . . . . . Sensors 156 | . . . . . . . . . . . . 156 . . . . . . . Terrain 2161 | . . . . . . . . . . . . . . . . . 607 1296 258 Seismic 2167 | . 142 584 901 8 . 520 12 . . . . . . . . . . . . ECM 93 | . . . . . . 4 . . . . . 42 2 . . 44 1 . . Robot Analysis Total 7 | . 2 1 . . . . . . . . . . . . 4 . . . . Derelict Logs Recovered . | . . . . . . . . . . . . . . . . . . . . Drone Launches 17 | . . . 4 . . . . . . . 13 . . . . . . . . Drone Recoveries 3 | . . . 2 . . . . . . . 1 . . . . . . . . Exploration | -11 -10 -9 -9 -9 -9 -6 -6 -6 -6 -6 -5 -4 -4 -4 -4 -3 -3 -3 -3 ------------- Run | Yrd Mat Mat Sto Rec Scr Fac Ext Cet Arc Hub Fac Fac Upp Upp Zhi Pro Res Qua Sec Turns Passed 18199 | 114 1504 1034 1545 737 3059 528 840 602 1355 229 1195 339 231 589 398 246 1639 1297 718 Spaces Moved 11709 | 43 855 524 794 454 2023 916 628 255 644 132 575 669 303 358 278 250 934 555 519 Core 426 | . . . . . 1 . . . 2 . . 19 215 . . . . . 189 Treads 3392 | . 287 22 20 . 306 . 121 255 642 132 533 . . 46 . . 474 553 1 Legs 678 | 5 . . . . . . . . . . . . . 310 108 . 71 2 182 Wheels 4217 | 38 568 502 774 454 1716 . . . . . . . . . . . 165 . . Hover 816 | . . . . . . . . . . . 2 11 88 2 170 250 224 . 69 Flight 2180 | . . . . . . 916 507 . . . 40 639 . . . . . . 78 Fastest Speed 28 | 95 95 115 120 120 105 28 28 160 160 163 34 31 50 90 100 30 42 166 40 Average Speed 115 | 97 119 125 130 134 146 28 53 162 160 163 150 34 64 125 110 79 129 168 100 Slowest Speed 800 | 120 160 160 240 135 800 103 162 163 200 163 160 117 200 190 230 132 190 260 180 Overloaded Moves 65 | . . . . . . . . . . . . . . . . 65 . . . Propulsion Burnouts . | . . . . . . . . . . . . . . . . . . . . Robots Hopped 19 | . . . . . . 3 9 . . . 1 5 . . . . . . 1 Potential Cave-ins . | . . . . . . . . . . . . . . . . . . . . Cave-ins Triggered . | . . . . . . . . . . . . . . . . . . . . Teleports 1 | . . . . . . . . . . . . . . . . . . . 1 Exploration Rate (%) 53 | 4 98 47 88 97 92 25 75 60 94 14 24 16 44 48 62 50 30 65 35 Regions Visited 19 Branch Regions 13 Pre-discovered Areas 15 | . 2 1 . 9 . . . . . . . . . . 3 . . . . Known Exits Taken 9 | . . 1 . 1 . 1 . . . . 1 1 1 1 1 1 . . . Unknown Exits Taken 10 | 1 1 . 1 . 1 . 1 1 1 1 . . . . . . 1 1 . Scrap Searched 12 | . . . . . 6 . . . . . . . 4 1 . 1 . . . Spaces Dug 115 | . 2 15 20 . . 26 9 . . . 7 7 2 . . 3 11 6 7 Terrain Destroyed 399 | . 2 53 43 . . 35 19 2 10 . 75 10 2 23 1 5 19 42 58 Melee 43 | . 1 1 3 . . 23 9 . . . . . . . . . 3 . 3 Projectile 143 | . 1 . . . . 3 . 2 10 . 36 10 2 23 1 5 16 20 14 AOE 213 | . . 52 40 . . 9 10 . . . 39 . . . . . . 22 41 Terrain Rammed . | . . . . . . . . . . . . . . . . . . . . Walls Destroyed . | . . . . . . . . . . . . . . . . . . . . Machines Disabled . | . . . . . . . . . . . . . . . . . . . . Actions | -11 -10 -9 -9 -9 -9 -6 -6 -6 -6 -6 -5 -4 -4 -4 -4 -3 -3 -3 -3 --------- Run | Yrd Mat Mat Sto Rec Scr Fac Ext Cet Arc Hub Fac Fac Upp Upp Zhi Pro Res Qua Sec Total 14861 | 84 1121 751 1117 534 2119 1119 993 401 918 145 743 749 336 428 347 275 1246 774 661 Wait 1072 | 13 90 82 115 46 7 130 100 77 188 3 16 39 9 5 . 2 63 73 14 Move 11657 | 42 854 523 793 453 2022 909 613 254 643 131 573 658 302 357 277 249 933 554 517 Hop 15 | . . . . . . 3 5 . . . 1 5 . . . . . . 1 Pick Up 179 | 3 13 15 17 . 20 6 7 11 4 2 14 4 4 5 11 2 22 14 5 Fast Attach 149 | . 6 3 2 . 5 3 14 4 13 . 7 14 10 6 6 2 38 3 13 Attach 97 | 2 6 4 2 . 7 7 3 2 3 . 11 2 1 4 3 2 15 12 11 Detach 70 | 2 1 2 . . 10 4 2 1 2 . 4 3 4 . 5 . 22 2 6 Swap 205 | 1 15 27 51 5 11 15 15 8 1 6 12 . . 3 3 5 8 5 14 Drop 238 | 3 15 15 28 . 24 10 15 19 16 3 15 4 4 . 15 1 42 6 3 Fire 783 | 18 119 79 74 18 . 4 5 12 14 . 82 17 2 48 24 10 81 104 72 Melee 150 | . 2 1 14 12 13 28 59 8 . . . 3 . . 3 . 4 . 3 Ram 4 | . . . . . . . . . . . . . . . . 2 . . 2 Kick . | . . . . . . . . . . . . . . . . . . . . Crush 37 | . . . . . . . . . 34 . 3 . . . . . . . . Escape Stasis 24 | . . . 9 . . . 15 . . . . . . . . . . . . Rewire 119 | . . . 3 . . . 116 . . . . . . . . . . . . Trap . | . . . . . . . . . . . . . . . . . . . . Miscellaneous 62 | . . . 9 . . . 24 5 . . 5 . . . . . 18 1 . Route ------- -11/Scrapyard -10/Materials (discovered 6 exits: *Mat x3 / [*Min x2] / [*Sub]) -9/Materials (discovered 6 exits: [*Mat x2] / Min x2 / *Sto x2) -9/Storage (discovered 2 exits: [*Mat] / *Rec) -9/Recycling (discovered 2 exits: [*Fac] / *Scr) -9/Scraptown (discovered 2 exits: *Fac x2) -6/Factory (discovered 4 exits: Low x2 / *Ext x2) -6/Extension (discovered 2 exits: *Fac / *Cet) -6/Cetus (discovered 2 exits: *Fac / [*Arc]) -6/Archives (discovered 3 exits: *Fac / *Hub x2) -6/Hub_04(d) -5/Factory -4/Factory (discovered 3 exits: *Res / *Upp x2) -4/Upper Caves -4/Upper Caves (discovered 2 exits: *Res / *Zhi) -4/Zhirov -3/Proximity Caves -3/Research (discovered 2 exits: [*Res] / *Qua) -3/Quarantine (discovered 3 exits: [*Res] / *Sec / [*Frg]) -3/Section 7 History --------- Turn | Location | Event 20 | -11/Scrapyard | Discovered new exit (range 3) 115 | -11/Scrapyard | Entered Materials 318 | -10/Materials | Build established: Mutant 456 | -10/Materials | Discovered new exit (range 6) 565 | -10/Materials | Discovered new exit (range 9) 590 | -10/Materials | Core integrity fell below 50% 1010 | -10/Materials | Discovered new exit (range 7) 1190 | -10/Materials | Discovered new exit (range 13) 1357 | -10/Materials | Discovered new exit (range 16) 1394 | -10/Materials | Core integrity fell below 20% 1409 | -10/Materials | Discovered new exit (range 9) 1619 | -10/Materials | Entered another Materials area 1619 | -9/Materials | Evolved 2 slots: Propulsion x1, Utility x1 1855 | -9/Materials | Identified exit to Mines 1855 | -9/Materials | Identified exit to Storage 2159 | -9/Materials | Discovered new exit (range 4) 2323 | -9/Materials | Destroyed 7 combat bots 2514 | -9/Materials | Discovered new exit (range 5) 2569 | -9/Materials | Learned Storage stockpile data 2653 | -9/Materials | Entered Storage 2713 | -9/Storage | Met a pair of Derelict thieves 3018 | -9/Storage | Discovered new exit (range 5) 3398 | -9/Storage | Core integrity fell below 50% 3625 | -9/Storage | Repaired Med. Armor Plating 3701 | -9/Storage | Assisted by bots powering up and referring to "LRC-V3" 4028 | -9/Storage | Build established: Commander-Mutant 4184 | -9/Storage | Used back door to open Recycling access 4184 | -9/Storage | Discovered new exit (range 5) 4198 | -9/Storage | Entered Recycling 4198 | -9/Recycling | Accompanied by 6 allies 4532 | -9/Recycling | Learned location of Zion (-7) 4571 | -9/Recycling | Learned location of 2 exits from Materials 4599 | -9/Recycling | Learned Materials trap positions 4605 | -9/Recycling | Discovered new exit (range 16) 4616 | -9/Recycling | Learned Materials non-interactive machine intel 4625 | -9/Recycling | Identified exit to Scraptown 4652 | -9/Recycling | Learned location of Mines (-8) 4680 | -9/Recycling | Learned Materials stockpile data 4864 | -9/Recycling | Scanned before Scraplab entrance 4889 | -9/Recycling | Entered Scraplab 4935 | -9/Recycling | Entered Scraptown 4935 | -9/Scraptown | Accompanied by 10 allies 5184 | -9/Scraptown | Visited Fellowship of the Rings 5198 | -9/Scraptown | Visited TADAMA 5241 | -9/Scraptown | Visited UFD Registry 5241 | -9/Scraptown | Registered with UFD as "Bulletranger" 5285 | -9/Scraptown | Visited Awakened 5583 | -9/Scraptown | Discovered new exit (range 7) 5819 | -9/Scraptown | Visited SPCMW 5847 | -9/Scraptown | Visited Cyclists 5873 | -9/Scraptown | Entered Cyclist Reading Room 6151 | -9/Scraptown | Visited Junk Repository 6197 | -9/Scraptown | Visited Derelict Rescue Squad 6224 | -9/Scraptown | Found DRS Beacon 6456 | -9/Scraptown | Visited Scrapoid Research Area 6512 | -9/Scraptown | Visited A0-MCA Data Center 6528 | -9/Scraptown | Visited Chapter 10 6617 | -9/Scraptown | Visited DA-N13 Charitable Foundation 6623 | -9/Scraptown | Found DCF Scrap (29 items) 6665 | -9/Scraptown | Visited Scrap Suit Storage 6716 | -9/Scraptown | Visited Curators Association 7166 | -9/Scraptown | Visited Infowarlord's Domain 7176 | -9/Scraptown | Found Exp. Signal Interpreter 7214 | -9/Scraptown | Given an A- rating by A0-MCA 7222 | -9/Scraptown | Found A0-MCA's Component Scanner 7297 | -9/Scraptown | Discovered new exit (range 3) 7926 | -9/Scraptown | Met Optimus 7926 | -9/Scraptown | Accepted into 0bPrime 7994 | -9/Scraptown | Entered Factory 7994 | -6/Factory | Accompanied by 10 allies 7994 | -6/Factory | Evolved 6 slots: Power x1, Propulsion x2, Utility x3 8117 | -6/Factory | Identified exit to Lower Caves 8117 | -6/Factory | Identified exit to Extension 8334 | -6/Factory | Lost 5 allies 8522 | -6/Factory | Entered Extension 8588 | -6/Extension | Rescued a captive Derelict 8611 | -6/Extension | Build established: Sprinter 8774 | -6/Extension | Lost 6 allies 8793 | -6/Extension | Spotted B-75 Beast 8798 | -6/Extension | Spotted B-75 Beast 8833 | -6/Extension | Rescued a captive Derelict 8833 | -6/Extension | Rescued a captive Derelict 8839 | -6/Extension | Lost 4 allies 8865 | -6/Extension | Rescued a captive Derelict 8956 | -6/Extension | Lost 4 parts (1p1n1u1w) 9077 | -6/Extension | Lost 4 parts (1p1n2u) 9091 | -6/Extension | Lost 4 allies 9204 | -6/Extension | Rescued A7 9222 | -6/Extension | First assault squad dispatched 9338 | -6/Extension | Discovered new exit (range 10) 9340 | -6/Extension | Discovered new exit (range 6) 9362 | -6/Extension | Entered Cetus 9362 | -6/Cetus | Accompanied by 4 allies (A7) 9367 | -6/Cetus | Acquired a Cetus Manufacturing Module code from A7 9382 | -6/Cetus | Build established: Scavenger-Mutant 9399 | -6/Cetus | Spotted Cetus Guard 9399 | -6/Cetus | Spotted Cetus Guard 9402 | -6/Cetus | Spotted Cetus Guard 9403 | -6/Cetus | Spotted Cetus Guard 9406 | -6/Cetus | Allies destroyed Cetus Guard 9411 | -6/Cetus | Allies destroyed Cetus Guard 9412 | -6/Cetus | Attached CPS modules to Cetus Guard. 9427 | -6/Cetus | Destroyed Cetus Guard 9432 | -6/Cetus | Destroyed Cetus Guard 9519 | -6/Cetus | Started Cetus Manufacturing Module 9544 | -6/Cetus | Manufactured an Enhanced Grunt 9558 | -6/Cetus | Discovered new exit (range 22) 9569 | -6/Cetus | Manufactured an Enhanced Grunt 9594 | -6/Cetus | Manufactured an Enhanced Grunt 9619 | -6/Cetus | Manufactured an Enhanced Grunt 9644 | -6/Cetus | Manufactured an Enhanced Grunt 9645 | -6/Cetus | Spotted Cetus Guard 9645 | -6/Cetus | Spotted Cetus Guard 9646 | -6/Cetus | Spotted Cetus Guard 9649 | -6/Cetus | Spotted Cetus Guard 9652 | -6/Cetus | Allies destroyed Cetus Guard 9659 | -6/Cetus | Allies destroyed Cetus Guard 9660 | -6/Cetus | Discovered new exit (range 21) 9664 | -6/Cetus | Allies destroyed Cetus Guard 9670 | -6/Cetus | Allies destroyed Cetus Guard 9688 | -6/Cetus | Met Revision 17 9866 | -6/Cetus | Murdered A7 9870 | -6/Cetus | Extracted ID and sensor layout for unrecognized location from A7's data core 9964 | -6/Cetus | Entered Archives 9964 | -6/Archives | Accompanied by 6 allies 10079 | -6/Archives | Discovered new exit (range 22) 10153 | -6/Archives | Discovered new exit (range 18) 10159 | -6/Archives | Discovered new exit (range 17) 10352 | -6/Archives | Build established: Commander-Mutant 10977 | -6/Archives | System corruption reached 10% 11319 | -6/Archives | Entered Hub_04(d) 11319 | -6/Hub_04(d) | Accompanied by 5 allies 11433 | -6/Hub_04(d) | Build established: Scavenger-Mutant 11490 | -6/Hub_04(d) | Discovered new exit (range 16) 11521 | -6/Hub_04(d) | Network Hub disabled 11529 | -6/Hub_04(d) | Spotted Lightning 11534 | -6/Hub_04(d) | Spotted Lightning 11534 | -6/Hub_04(d) | Spotted Lightning 11548 | -6/Hub_04(d) | Entered Factory 11548 | -5/Factory | Evolved 2 slots: Propulsion x1, Utility x1 11575 | -5/Factory | Lost 4 allies 11960 | -5/Factory | Lost 5 allies 11976 | -5/Factory | Discovered new exit (range 35) 12033 | -5/Factory | Identified exit to Factory 12400 | -5/Factory | Cargo convoy interrupted 12661 | -5/Factory | Lost 6 parts (2p1n1u2w) 12743 | -5/Factory | Entered another Factory area 12743 | -4/Factory | Evolved 2 slots: Propulsion x1, Utility x1 12837 | -4/Factory | Spotted B-86 Titan 12872 | -4/Factory | Discovered new exit (range 10) 12874 | -4/Factory | Identified exit to Research 12996 | -4/Factory | Identified exit to Upper Caves 13004 | -4/Factory | Spotted B-86 Titan 13082 | -4/Factory | Entered Upper Caves 13107 | -4/Upper Caves | Lost 11 parts (1p7n3u) 13220 | -4/Upper Caves | Discovered new exit (range 15) 13228 | -4/Upper Caves | Encountered a Warlord checkpoint 13267 | -4/Upper Caves | Identified exit to Upper Caves 13313 | -4/Upper Caves | Entered another Upper Caves area 13315 | -4/Upper Caves | Attracted the attention of an 0b10 checkpoint 13333 | -4/Upper Caves | Encountered a Warlord checkpoint 13400 | -4/Upper Caves | Discovered exit to Research (range 12) 13459 | -4/Upper Caves | Murdered 3 allies 13891 | -4/Upper Caves | Discovered new exit (range 10) 13901 | -4/Upper Caves | Identified exit to Zhirov 13902 | -4/Upper Caves | Entered Zhirov 13907 | -4/Zhirov | Discovered new exit (range 3) 13930 | -4/Zhirov | Met Zhirov 13968 | -4/Zhirov | Learned location of Testing (-2) 13968 | -4/Zhirov | Learned location of Command (-1) 13990 | -4/Zhirov | Zhirov requested help retrieving the SGEMP Prototype 14011 | -4/Zhirov | Found Alien Artifact 14011 | -4/Zhirov | Identified Integrated Dissipator 14011 | -4/Zhirov | Installed Integrated Dissipator, increased core heat dissipation (+20) 14028 | -4/Zhirov | Found Alien Artifact 14144 | -4/Zhirov | Identified exit to Proximity Caves 14300 | -4/Zhirov | Entered Proximity Caves 14402 | -3/Proximity Caves | Ambushed by research squad 14431 | -3/Proximity Caves | Attracted the attention of an 0b10 checkpoint 14468 | -3/Proximity Caves | Lost 3 parts (1n1u1w) 14508 | -3/Proximity Caves | Attracted the attention of an 0b10 outpost 14541 | -3/Proximity Caves | Discovered exit to Research (range 14) 14546 | -3/Proximity Caves | Entered Research 14546 | -3/Research | Evolved 2 slots: Utility x2 14572 | -3/Research | Lost 8 parts (2p4n2w) 14746 | -3/Research | Revision forces began assault on 0b10 14779 | -3/Research | Met up with Revision 17++ 14840 | -3/Research | Fabricated Cmb. Linear Gravjet (x2) 14850 | -3/Research | System corruption reached 10% 14880 | -3/Research | Central database locked down 14974 | -3/Research | Lost 5 allies 15083 | -3/Research | Lost 4 parts (2n1u1w) 15109 | -3/Research | Discovered new exit (range 7) 15146 | -3/Research | Spotted B-86 Titan 15181 | -3/Research | Identified Transdimensional Reconstructor 15232 | -3/Research | Found Gamma Bomb Array 15246 | -3/Research | Research terminal network offline 15568 | -3/Research | Found Exp. Terrain Scan Processor 15600 | -3/Research | Discovered new exit (range 7) 16185 | -3/Research | Entered Quarantine 16330 | -3/Quarantine | Cryocooling Duct disabled 16345 | -3/Quarantine | Ambient heat levels rising (+20) 16345 | -3/Quarantine | Non-combat units ordered to evacuate 16937 | -3/Quarantine | Found Alien Artifact 17044 | -3/Quarantine | Discovered new exit (range 24) 17085 | -3/Quarantine | System corruption reached 30% 17179 | -3/Quarantine | Found Quantum Capacitor 17185 | -3/Quarantine | First assault squad dispatched 17346 | -3/Quarantine | Spotted Fortress 17380 | -3/Quarantine | Core integrity fell below 50% 17443 | -3/Quarantine | Discovered new exit (range 21) 17443 | -3/Quarantine | Discovered new exit (range 20) 17482 | -3/Quarantine | Entered Section 7 17484 | -3/Section 7 | Identified Core Reset Matrix 17484 | -3/Section 7 | Used Core Reset Matrix 17486 | -3/Section 7 | Spotted S7 Guard 17488 | -3/Section 7 | Detected hypermatrix surge 17488 | -3/Section 7 | Sensed 26 artifacts in vicinity 17504 | -3/Section 7 | Spotted B-86 Titan 17504 | -3/Section 7 | Spotted S7 Guard 17504 | -3/Section 7 | Warped through subspace 17607 | -3/Section 7 | Spotted S7 Guard 17616 | -3/Section 7 | Found Integrated Thermoelectric Network 17616 | -3/Section 7 | Installed Integrated Thermoelectric Network, gained heat-energy exchange potential 17622 | -3/Section 7 | Lost 7 parts (1p3n2u1w) 17922 | -3/Section 7 | Build established: Alien-Mutant 17970 | -3/Section 7 | Released all parts (11) 18001 | -3/Section 7 | Lost 10 parts (1p4n4u1w) 18020 | -3/Section 7 | Spotted Alpha 7 18044 | -3/Section 7 | Core integrity fell below 20% 18200 | -3/Section 7 | Destroyed by P-80 Master with Gamma Rifle Last Messages --------------- 18114_ Destroyed Mic. Antimatter Reactor. 18114_ P-80 Master suffers critical hit (Blast). 18114_ Destroyed Adv. Heat Sink. 18114_ P-80 Master knocked back. 18117_ W-44 Eye sends out distress signal. 18131_ P-80 Master resets R-10 Processor, system corruption cleaned. 18142_ Terminal disabled. 18155_ Dark Matter Chamber disabled. 18158_ System corrupted: Heat flow error (+287). 18162_ Acquired 171 matter. 18163_ Penetrated by Slug. 18169_ Acquired Prototype Slashing Weapon. 18169_ Identified Vibroblade. 18179_ Hvy. Linear Accelerator destroyed. 18186_ O-24 Administrator: "IFF HANDSHAKE FAILED. SECURING TERMINAL." 18192_ Acquired Unknown Processor. 18192_ Identified Core Analyzer. 18197_ ALERT: Potential suspicious activity detected, Programmers report to Section 7 Zone 1V. [Achievement: Collector] Map ----- +----------------------------------------------------+ | " # #????# +?? | | " # ###""#% +?? | | " # / ??? | | # """"""" "T" ##""###################+##### ??? | | # """"""" """ #?###???????????????????????????? | | # """"""" #???????????????????????????????? | | ##################???????????????????????????????? | | ?????????????????????????????????????????????????? | | ??#??????##########??????????????????????????????? | | ??# ???? #??????????????????????????????? | | ??# ??? #??????????????????????????????? | | ??# ? #??????????????????????????????? | | ??# #??????????????????????????????? | | #?# """"" #??????????????????????????????? | | #?# "" " #??????????????????????????????? | | #?# """ #??????????????????????????????? | | #?# "!" #??????????????????????????????? | | #?# """ #??????????????????????????????? | | #?# #??????????????????????????????? | | ########+#+#############+###?????????????????????? | | ????????????????????? | | ######## ?????????????????????? | | ???????# """"""" ??????????????????????? | | ???????# """"""" #??#######?????????????? | | ???????##+##### """"""" #?? ?????????????? | | ??????????????# p @#? ??????????????? | | ??????????????# """"""" #? ???????????????? | | ??????????????# """"""" # """ "???????????????? | | ??????????????# """"""" # """ ""??????????????? | | ??????????????# p + """ ""??????????????? | | ??????????????# # """ ""??????????????? | | ??????????????# ### # """ "???????????????? | | ??????????????# #?# #? """ "???????????????? | | ??????????????# #?# #? """ "???????????????? | | ??????????????# #?# #?? ????????????????? | | ??????????????# #?# #?? ???????????????? | | ??????????????# #?# #???####???????????????? | | ??????????????+ #?# #??????????????????????? | | ??????????????# #?# #??????????????????????? | | ??????????????# #?# #??????????????????????? | | ??????????????# #?# #??????????????????????? | | ??????????????######?# #??????????????????????? | | ?????????????????????# #??????????????????????? | | ?????????????????????# +??????????????????????? | | ?????????????????????# #??????????????????????? | | ??????????????????????####???????????????????????? | | ?????????????????????????????????????????????????? | | ?????????????????????????????????????????????????? | | ?????????????????????????????????????????????????? | | ?????????????????????????????????????????????????? | +----------------------------------------------------+ Best States ------------- Heat Dissipation 116 Energy Generation 47 Energy Capacity 580 Matter Stores 433 Matter Capacity 600 Sight Range 22 Robot Scan Range 16 Terrain Scan Range 24 Terrain Scan Density 1010 ECM Strength 2 Power Amplification 30 Armor Coverage 1200 Core Shielding 20 Power Shielding 90 Melee Speed Boost 20 Evasion (%) 75 Targeting Accuracy 20 Launcher Accuracy 30 Core Analysis 6 Recoil Reduction 7 Offensive Hacking 26 Item Schematics ----------------- None Robot Schematics ------------------ None Fabricated ------------ Cmb. Linear Gravjet | x2 | -3/Research | Preloaded Repaired ---------- Med. Armor Plating | 13% | -9/Storage Studied --------- None Alien Tech Used ----------------- Integrated Dissipator Core Reset Matrix Transdimensional Reconstructor Integrated Thermoelectric Network Achievements -------------- Collector Hack The Planet Physics Hates This One Trick Wiki Contributor Challenges ------------ None Game ------ Seed FortressGravityMegashotty Manual? 0 Play Time 07:03:32 Cumulative 218.7 hours Start 2025.12.27 @ 10:48:02 End 2026.01.16 @ 11:16:01 Sessions 39 Manual Loads 0 Difficulty Rogue Special Mode None Game No. 79 Rogue 75 Adventurer 1 Explorer 3 Win Type - Total 8 Types 4/2/1/0/0/0/1/0/0/0 Lore% 72 Gallery% 75 Achievement% 54 Wizard Run 0 Options --------- Layout 0 ASCII 0 Keyboard 1 Movement Numpad Keybinds 0 Fullscreen 1 Font 36/SmallcapsGlow++ Map View 76x50 Zoom Use 0% Tactical HUD 1 Map Filters NONE Filters NONE Steam 1 RUN: 77326ccf-eaa1-428a-8571-e343b2004490